Cogmind - Beta 15 @@@ ROGUE MODE // 2025.07.17 @ 00:36:49 Player: Cracklepappy Result: Destroyed by Y-64 Sentinel with KE Penetrator Performance ------------- Evolutions (5) 2500 Regions Visited (24) 4800 Robots Destroyed (582) 2910 Value Destroyed (23159) 23159 Prototype IDs (55) 1100 Alien Tech Used (0) 0 Bonus (7938) 7938 TOTAL SCORE: 42407 Bonus ------- High Alert Combat Kills 5291 Follower Combat Kills 1196 Entered Garrisons 1000 Aligned with FarCom 300 Acquired ECA 300 Friendly Fire -149 Cogmind --------- Core Integrity 0/1000 Matter 167/300 Energy 100/100 System Corruption 16% Temperature Cool (9) Movement Core (50) Location -5/Factory Parts ------- > --- POWER (1) -------- (None) > --- PROPULSION (4) --- (None) > --- UTILITY (6) ------ (None) > --- WEAPON (6) ------- Heavy Pick > --- INVENTORY (5) ---- Neutrino Core Mobile Refinery Mk. CCLXVII Peak State ------------ > --- POWER ------------ Particle Reactor > --- PROPULSION ------- Armored Huge Wheel Armored Huge Wheel > --- UTILITY ---------- Advanced Cooling System Huge Storage Unit Experimental Targeting Computer Experimental Core Analyzer Advanced Recoil Stabilizer Advanced System Shield > --- WEAPON ----------- Autogun Gauss Rifle Gauss Rifle KE Penetrator KE Penetrator Tiamat Missile Launcher > --- INVENTORY -------- Reinforced Fission Core Armored Wheel Armored Huge Wheel Cryofiber Web Experimental Heat Sink Matter Compressor Enhanced Optical Array Advanced Signal Interpreter Encrypted Comm Array Core Analyzer Improved Armor Integrity Analyzer Improved Weapon Cycler Improved Utility Shielding Improved Hardlight Generator Advanced Shield Generator Authchip [R/NC] High-powered Tractor Beam Mobile Refinery Mk. CCLXVII AS-neutralizer No. 17b Heavy Phase Cannon Autogun Mass Driver Plasma Cutter Heavy Pick [Rating: 99] Favorites ----------- Power Reinforced Fission Core Engine Cooled Ion Engine Power Core Reinforced Fission Core Reactor Particle Reactor Propulsion Armored Wheel Wheel Armored Wheel Utility Huge Storage Unit Device Experimental Heat Sink Storage Huge Storage Unit Processor Salvage Targeting Computer Hackware Advanced System Shield Protection Light Armor Plating Weapon Flak Gun Energy Gun Thermic Laser Energy Cannon Heavy Phase Cannon Ballistic Gun Flak Gun Ballistic Cannon Light Cannon Launcher Rocket Launcher Special Weapon Plasma Cutter Impact Weapon Makeshift Hammer Slashing Weapon Axe Piercing Weapon Heavy Pick Special Melee Weapon Improved Datajack Build | -11 -10 -10 -9 -9 -9 -8 -8 -8 -8 -8 -8 -8 -8 -8 -7 -7 -7 -7 -7 -7 -6 -6 -6 -5 ------- Run | Yrd Mat Min Mat Min Exi Min Mat Gar Mat Gar Mat Gar Mat Sto Fac Gar Fac Low Low Zio Pro Fac Gar Fac Slots Evolved 10 | . . . 2 . . . 2 . . . . . . . 2 . . . . . . 2 . 2 Power . | . . . . . . . . . . . . . . . . . . . . . . . . . Propulsion 2 | . . . . . . . . . . . . . . . 1 . . . . . . . . 1 Utility 4 | . . . . . . . 1 . . . . . . . 1 . . . . . . 1 . 1 Weapon 4 | . . . 2 . . . 1 . . . . . . . . . . . . . . 1 . . Parts Attached 229 | 7 11 3 19 . 17 3 20 9 4 15 7 8 5 9 16 13 3 2 . 3 . 17 9 29 Power 18 | 1 2 1 4 . 1 . 2 1 . . . 1 . 1 2 . . . . . . . 2 . Engine 10 | 1 2 . 4 . 1 . 1 . . . . . . 1 . . . . . . . . . . Core 6 | . . 1 . . . . 1 1 . . . 1 . . 2 . . . . . . . . . Reactor 2 | . . . . . . . . . . . . . . . . . . . . . . . 2 . Propulsion 39 | 2 3 1 3 . 2 1 . 2 3 1 2 2 . 1 1 3 1 . . . . 4 2 5 Treads . | . . . . . . . . . . . . . . . . . . . . . . . . . Leg . | . . . . . . . . . . . . . . . . . . . . . . . . . Wheel 39 | 2 3 1 3 . 2 1 . 2 3 1 2 2 . 1 1 3 1 . . . . 4 2 5 Hover . | . . . . . . . . . . . . . . . . . . . . . . . . . Flight . | . . . . . . . . . . . . . . . . . . . . . . . . . Utility 63 | 2 3 . 6 . 2 . 6 1 1 1 . . 2 4 9 5 1 1 . 2 . 8 . 9 Device 30 | 1 . . . . 1 . 4 1 . 1 . . 1 3 5 4 . 1 . 2 . 2 . 4 Storage 12 | 1 2 . 3 . 1 . 1 . 1 . . . 1 . . . . . . . . . . 2 Processor 6 | . . . 1 . . . . . . . . . . 1 1 . . . . . . 2 . 1 Hackware 7 | . . . . . . . 1 . . . . . . . 2 . 1 . . . . 1 . 2 Protection 8 | . 1 . 2 . . . . . . . . . . . 1 1 . . . . . 3 . . Artifact . | . . . . . . . . . . . . . . . . . . . . . . . . . Weapon 109 | 2 3 1 6 . 12 2 12 5 . 13 5 5 3 3 4 5 1 1 . 1 . 5 5 15 Energy Gun 11 | 1 . . . . . . . . . 2 2 . . . . . . . . . . . . 6 Energy Cannon 4 | . . . 1 . . . . . . . . . . . 1 . . . . . . 1 . 1 Ballistic Gun 72 | 1 . . 4 . 7 2 8 4 . 10 2 4 3 3 2 5 1 1 . 1 . 3 5 6 Ballistic Cannon 10 | . 3 . 1 . 1 . 4 . . . . . . . . . . . . . . . . 1 Launcher 3 | . . . . . 1 . . . . . 1 . . . . . . . . . . . . 1 Special Weapon 3 | . . 1 . . . . . . . . . 1 . . 1 . . . . . . . . . Impact Weapon 1 | . . . . . 1 . . . . . . . . . . . . . . . . . . . Slashing Weapon 2 | . . . . . 1 . . 1 . . . . . . . . . . . . . . . . Piercing Weapon 2 | . . . . . . . . . . 1 . . . . . . . . . . . 1 . . Special Melee Weapon 1 | . . . . . 1 . . . . . . . . . . . . . . . . . . . Unidentified Prototypes 10 | . . . 1 . . . 2 . . . 1 . . 1 . . . . . 1 . 1 . 3 Parts Lost 52 | . . . 1 . 7 1 3 2 . 7 . 1 . . 1 1 . . . . . 4 1 23 Power 2 | . . . . . . . . . . . . . . . . . . . . . . . . 2 Propulsion 9 | . . . . . 1 . . 2 . . . . . . . . . . . . . . 1 5 Utility 12 | . . . 1 . . . 1 . . 1 . . . . . . . . . . . 4 . 5 Weapon 29 | . . . . . 6 1 2 . . 6 . 1 . . 1 1 . . . . . . . 11 Highest Loss Streak 17 | . . . 1 . 7 1 1 1 . 2 . 1 . . 1 1 . . . . . 1 1 17 To Critical Strikes 7 | . . . . . 7 . . . . . . . . . . . . . . . . . . . Average Backups 21 | 3 12 15 17 20 16 19 19 19 20 24 24 24 24 24 24 24 24 25 25 25 25 24 24 23 Power . | . 1 1 . 1 1 1 1 . . . 1 1 1 1 1 1 1 1 1 1 1 1 1 . Propulsion 2 | . 3 3 4 4 2 1 1 . 2 2 1 1 2 1 1 3 4 4 4 4 4 3 2 1 Utility 11 | 1 4 7 4 6 5 15 13 10 10 13 16 15 15 14 15 13 13 12 12 12 12 13 13 14 Weapon 5 | 1 3 4 7 8 6 2 3 7 6 5 4 4 4 5 5 6 5 6 6 6 6 3 5 4 Tool/Special . | . . . . . . . . . . . . . . . . . . . . . . . . . Unused Backups 96 | . 9 . 12 1 11 2 5 5 3 5 6 1 1 5 3 4 . 1 . . . 5 4 13 Power 7 | . 1 . 1 . 3 . 1 . . . . . . . . 1 . . . . . . . . Propulsion 10 | . 1 . 3 . 1 . . . 1 1 . . . . . . . . . . . 1 . 2 Utility 40 | . 2 . 5 . 5 . 2 3 . . 2 1 1 1 1 1 . 1 . . . 3 2 10 Weapon 38 | . 5 . 3 1 2 2 2 2 2 4 4 . . 4 1 2 . . . . . 1 2 1 Tool/Special 1 | . . . . . . . . . . . . . . . 1 . . . . . . . . . Average Slot Usage (%) 97 | . 99 100 99 100 80 99 99 96 100 99 100 100 99 99 99 100 99 100 100 100 100 94 92 86 Engine 3 | . 14 4 10 11 11 11 4 4 . . . . . 3 1 . . . . . . . . . Core 4 | . . 9 . . . . 4 4 9 9 9 9 9 5 5 7 7 7 7 7 7 6 3 . Wheel 19 | . 28 28 22 22 22 22 18 15 18 18 18 18 18 18 23 23 23 23 23 23 23 15 12 13 Device 13 | . 6 . . . . 11 12 18 18 18 18 18 18 18 21 23 21 23 23 23 23 9 6 9 Storage 8 | . 14 14 11 11 11 11 9 9 9 9 9 9 9 9 7 7 7 7 7 7 7 6 6 4 Processor 3 | . . . 7 11 10 . . . . . . . . . . . . . . . . 6 13 11 Hackware 1 | . . . . . . . 5 . . . . . . . . . . . . . . 3 6 4 Ballistic Gun 34 | . 2 . 42 44 15 29 32 41 44 36 38 40 44 43 35 35 36 38 37 38 36 39 36 26 Ballistic Cannon 2 | . 22 26 . . . 11 12 . . . . . . . . . . . . . . . . . Peak Build Rating 99 | 7 8 10 26 26 46 45 59 54 53 59 59 53 50 54 62 62 59 61 63 63 64 86 87 99 Average Rating 50 | 5 7 9 22 26 25 43 53 48 49 52 54 50 48 50 58 55 56 59 61 61 63 82 84 88 On Entrance 46 | . 7 8 10 26 26 44 45 54 49 49 58 50 50 48 52 61 57 58 61 61 63 63 85 82 Naked Turns 3 | . . . . . . . . . . . . . . . . . . . . . . . . 3 Heaviest Build 141 | 13 34 34 60 60 69 69 77 83 123 122 121 118 102 108 118 127 127 125 124 128 127 133 128 141 Greatest Support 56 | 20 32 32 32 24 24 24 24 28 28 28 28 24 22 22 36 36 36 36 36 36 36 40 40 56 Greatest Overweight (x) 11 | . 1 1 2 2 2 2 3 6 5 5 5 5 8 4 3 3 3 3 3 3 3 3 3 11 Average Overweight (x) 2 | . . . 1 2 1 2 2 3 3 4 4 4 4 4 2 2 3 3 3 3 3 3 2 1 Largest Inventory Capacity 25 | 8 15 15 20 20 20 20 20 20 25 25 25 25 25 25 25 25 25 25 25 25 25 25 25 25 Average Capacity 22 | 7 12 15 17 20 20 20 20 20 21 25 25 25 25 25 25 25 25 25 25 25 25 25 25 24 Most Carried 25 | 8 15 15 20 20 20 20 20 20 25 25 25 25 25 25 25 25 25 25 25 25 25 25 25 25 Average Carried 21 | 3 12 15 17 19 16 19 19 19 20 24 24 24 24 24 24 24 24 25 25 24 25 24 24 23 Final Capacity 25 | 8 15 15 20 20 20 20 20 20 25 25 25 25 25 25 25 25 25 25 25 25 25 25 25 5 Final Carried 25 | 8 15 15 20 20 20 20 20 20 25 25 25 25 25 25 25 25 25 25 25 25 25 25 25 2 Class Distribution -------------------- 34% | Gunner 17% | Scavenger-Gunner 16% | Scavenger-Tank 13% | Scavenger-Executioner 9% | Mutant 7% | Tank Dominant Class ---------------- Mutant | -10/Materials Mutant | -10/Mines Gunner | -9/Materials Gunner | -9/Mines Mutant | -9/Exiles Tank | -8/Mines Gunner | -8/Materials Gunner | -8/Garrison Gunner | -8/Materials Scavenger-Gunner | -8/Garrison Scavenger-Gunner | -8/Materials Scavenger-Gunner | -8/Garrison Scavenger-Gunner | -8/Materials Scavenger-Gunner | -8/Storage Gunner | -7/Factory Gunner | -7/Garrison Scavenger-Tank | -7/Factory Scavenger-Tank | -7/Lower Caves Scavenger-Tank | -7/Lower Caves Scavenger-Tank | -7/Zion Scavenger-Tank | -6/Proximity Caves Scavenger-Executioner | -6/Factory Scavenger-Executioner | -6/Garrison Scavenger-Executioner | -5/Factory Resources | -11 -10 -10 -9 -9 -9 -8 -8 -8 -8 -8 -8 -8 -8 -8 -7 -7 -7 -7 -7 -7 -6 -6 -6 -5 ----------- Run | Yrd Mat Min Mat Min Exi Min Mat Gar Mat Gar Mat Gar Mat Sto Fac Gar Fac Low Low Zio Pro Fac Gar Fac Matter Collected 24784 | 297 591 213 1351 166 1445 323 1807 1258 1293 1803 704 1055 464 902 2526 1837 222 391 275 70 576 1717 1208 2290 Remotely 1447 | . . . . . . . . . . . . . . . 534 129 144 . . . . 101 . 539 Salvage Created 25467 | 136 547 182 1695 230 626 257 1900 1124 1385 1620 996 1035 464 941 2244 1747 144 157 430 . 492 1743 1831 3541 Parts 1354 | 12 34 4 112 22 94 20 119 66 80 83 47 52 22 50 103 83 7 5 15 . 13 71 90 150 Haulers Intercepted 34 | . 2 . 6 . . . 6 . 3 . 4 . . 4 5 . . . . . . 1 . 3 Recyclers Shooed 16 | . . . . . . . 1 . 2 . 2 . . 1 5 . . . . . . 2 . 3 Parts Field Recycled . | . . . . . . . . . . . . . . . . . . . . . . . . . Retrieved Matter . | . . . . . . . . . . . . . . . . . . . . . . . . . Parts Self-Destructed 42 | . . . . . . . . . . . . . . . . . . 13 15 1 13 . . . Prevented . | . . . . . . . . . . . . . . . . . . . . . . . . . Kills | -11 -10 -10 -9 -9 -9 -8 -8 -8 -8 -8 -8 -8 -8 -8 -7 -7 -7 -7 -7 -7 -6 -6 -6 -5 ------- Run | Yrd Mat Min Mat Min Exi Min Mat Gar Mat Gar Mat Gar Mat Sto Fac Gar Fac Low Low Zio Pro Fac Gar Fac Combat Hostiles Destroyed 431 | . 18 1 27 9 4 11 26 30 28 38 10 19 8 9 30 31 3 3 7 . 12 26 27 54 Guns 385 | . 5 . 26 9 1 2 19 30 28 38 10 19 8 9 30 31 3 3 7 . 12 26 27 42 Cannons 25 | . 13 1 1 . . 1 7 . . . . . . . . . . . . . . . . 2 AOE 21 | . . . . . 3 8 . . . . . . . . . . . . . . . . . 10 Classes Destroyed 25 | 2 6 . 2 . 3 . 3 2 . 2 . . . . . 1 . . 1 . . . 2 1 Worker 29 | . 1 1 2 1 . 1 4 . 2 . 1 . . 1 6 . . . . . . 4 . 5 Builder 23 | . . . 4 . . 1 3 . 2 . 4 . . . 3 . . . . . . 2 . 4 Tunneler 7 | 4 . . . 1 . . 1 . 1 . . . . . . . . . . . . . . . Hauler 34 | . 2 . 6 . . . 6 . 3 . 4 . . 4 5 . . . . . . 1 . 3 Recycler 28 | 1 1 2 1 . . . 1 . 5 . 3 . . 3 6 . . . . . . 2 . 3 Mechanic 2 | . . . . . . . . . . . . . . . . 1 . . . . . . . 1 Operator 5 | . 1 . 1 . . . . . 2 . . . . . . . 1 . . . . . . . Turret 1 | . . . . . 1 . . . . . . . . . . . . . . . . . . . Watcher 12 | . 1 . 5 . . . 3 . 1 . . . 1 . . 1 . . . . . . . . Swarmer 96 | . 9 1 6 7 . 8 4 4 12 6 1 3 . . 7 7 1 1 . . 3 5 5 6 Cutter 3 | . . . . . . . . 3 . . . . . . . . . . . . . . . . Saboteur 1 | . . . . . . . . . . . . . . . . . . . . . . . . 1 Grunt 195 | . 9 . 12 2 1 3 10 10 11 21 6 5 4 6 13 13 1 3 3 . 7 15 14 26 Brawler 8 | . . . . . . . 1 . . 1 . 1 1 . . . . . . . . . 1 3 Duelist 15 | . . . . . . . 2 . . 1 . . 1 . 1 1 1 . 1 . . 1 . 6 Protector 3 | . . . . . . . . . . . . . . . . . . . . . . . 1 2 Sentry 61 | . . . 9 . . . 7 9 5 5 3 2 2 3 3 5 . . 1 . 1 2 3 1 Demolisher 1 | . . . . . . . . . . . . . . . . . . . . . . . 1 . Specialist 8 | . . . . . . . . 4 . . . . . . . 1 . . 1 . . . . 2 Hunter 10 | . . . . . . . 2 . . . . . . . 1 2 . . 1 . . 1 2 1 Programmer 27 | . . . . . . . . . . 3 . 8 . . 5 2 . . . . 1 2 . 6 Behemoth 1 | . . . . . . . . . . 1 . . . . . . . . . . . . . . Zionite 8 | . . . . . 8 . . . . . . . . . . . . . . . . . . . Samaritan 1 | . . . . . . . . . . . . . . . . . . . 1 . . . . . Assembled 3 | . . . . . 3 . . . . . . . . . . . . . . . . . . . Thug 1 | . . . . . . . . . . . . . . . . . . . . . 1 . . . Best Kill Streak 15 | 3 3 3 9 4 4 5 7 6 11 4 4 3 3 5 9 10 4 2 4 . 4 9 5 15 Combat Bots Only 11 | . 3 1 3 4 3 4 4 6 7 4 2 3 2 4 8 10 3 2 4 . 4 7 5 11 Max Kills in Single Turn 5 | 1 1 1 2 2 2 5 3 3 2 1 2 2 1 1 2 3 1 2 1 . 2 2 2 3 Gunslinging 2 | . . . 1 . . . 1 1 1 . . 1 . . 1 2 . . . . 1 . 1 1 Exploded 4 | . . . . . 1 4 . . . . . . . . . . . . . . . . . 3 Melee . | . . . . . . . . . . . . . . . . . . . . . . . . . Uniques/NPCs Destroyed 4 | . . . . . 4 . . . . . . . . . . . . . . . . . . . 8R-AWN (-9/Exiles) EX-BIN (-9/Exiles) EX-DEC (-9/Exiles) EX-HEX (-9/Exiles) Combat | -11 -10 -10 -9 -9 -9 -8 -8 -8 -8 -8 -8 -8 -8 -8 -7 -7 -7 -7 -7 -7 -6 -6 -6 -5 -------- Run | Yrd Mat Min Mat Min Exi Min Mat Gar Mat Gar Mat Gar Mat Sto Fac Gar Fac Low Low Zio Pro Fac Gar Fac Hostile Shots Fired 1594 | . 91 21 51 13 67 29 66 58 43 117 14 58 15 11 134 170 2 33 11 . 59 119 81 331 Missed 477 | . 26 8 14 5 11 7 19 17 14 35 3 21 6 5 39 57 . 16 2 . 14 42 28 88 Hits 1117 | . 65 13 37 8 56 22 47 41 29 82 11 37 9 6 95 113 2 17 9 . 45 77 53 243 Melee 23 | . . . . . 1 . 1 3 . . . . . . 1 . . 3 . . . 1 . 13 Projectile 1094 | . 65 13 37 8 55 22 46 38 29 82 11 37 9 6 94 113 2 14 9 . 45 76 53 230 AOE 2 | . . . . . . . . 1 . . . . . . . . . . . . . . 1 . Critical Strikes 81 | . . 1 . . 30 . 3 4 1 8 . 1 1 . 2 2 . 1 1 . 3 5 1 17 Part Disruptions 3 | . . . . . . . . . . . . 1 . . . 1 . . . . . . . 1 Damage Taken 16610 | . 624 143 472 83 1105 240 621 695 345 1302 234 626 154 100 1211 969 34 183 70 . 487 1269 953 4690 Core 2698 | . 136 7 67 . 125 25 72 70 61 145 33 130 18 . 279 163 . 31 21 . 94 135 69 1017 Absorbed by Shields 919 | . . . . . . 91 50 . . . . 23 . . 94 267 13 73 31 . 182 9 . 86 Redirected to Shielding 462 | . . . . . . . . . . . . . . . . . . . . . . 462 . . Regen/Repaired (Parts) 1586 | . 100 . 95 . . . 14 . . . . . . 232 251 122 135 105 26 . 149 44 . 313 Core Remaining (%) 47 | 100 . 42 . . . 45 . . . . . . . 3 . . . . . . 16 . 76 . Volleys Fired 1046 | 9 66 15 75 13 75 14 66 40 42 73 36 55 22 29 89 75 6 9 12 . 24 47 55 99 Largest 6 | 2 2 2 4 4 4 4 5 5 5 5 5 5 5 5 5 5 5 5 5 . 5 6 6 6 Hottest 401 | 70 70 100 150 92 106 116 162 142 140 219 186 123 123 125 128 142 139 137 134 . 145 174 177 401 Shots Fired 4407 | 18 131 27 299 52 186 39 294 178 210 318 180 198 111 140 426 364 25 45 60 . 118 272 223 493 Gun 4087 | 18 43 . 287 52 179 25 222 178 210 318 180 182 111 140 425 364 25 45 60 . 118 271 206 428 Cannon 266 | . 88 24 12 . . 11 72 . . . . . . . . . . . . . . 1 . 58 Launcher 17 | . . . . . 7 3 . . . . . . . . . . . . . . . . . 7 Special 37 | . . 3 . . . . . . . . . 16 . . 1 . . . . . . . 17 . Kinetic 4194 | 9 110 24 296 52 179 36 294 178 210 309 156 182 111 140 425 364 25 45 60 . 118 271 206 394 Thermal 195 | 9 21 3 3 . . . . . . 9 24 16 . . . . . . . . . 1 17 92 Explosive 17 | . . . . . 7 3 . . . . . . . . . . . . . . . . . 7 Electromagnetic . | . . . . . . . . . . . . . . . . . . . . . . . . . Robot Hit Streak 28 | 2 12 6 17 13 15 4 8 15 21 28 8 14 7 7 12 16 5 6 23 . 9 8 24 15 Robot Miss Streak 19 | 1 4 5 7 1 5 4 17 10 19 8 5 9 5 5 6 5 9 7 2 . 13 7 4 5 Penetration Max 1 | . . . . . 1 . 1 . . 1 1 . . . 1 . 1 . 1 . . 1 1 1 Secondary Targets 82 | . 1 . 2 . . . 1 9 3 10 . 2 . . 9 13 1 . 1 . 5 7 7 11 Max Gunslinging Chain 2 | . 1 . 1 . . . 1 1 1 1 . 1 . . 1 2 1 . 1 . 2 1 2 1 Shots Hit Robots 2489 | 11 75 12 157 32 126 18 140 116 140 190 73 114 59 63 238 215 12 19 39 . 78 133 148 281 Core Hits 1475 | 5 29 5 66 15 39 15 86 140 148 145 36 42 19 26 84 85 12 13 19 . 80 100 85 181 Critical Kills 31 | . . . . . 6 1 11 . . 1 3 1 . . . . . . . . . 4 1 3 Critical Parts Destroyed 59 | . . . 1 1 10 3 19 . . 7 3 . . 1 3 1 . . 1 . . 1 1 7 Critical Strikes 107 | . 3 1 1 1 16 5 31 . . 9 7 2 . 1 5 3 . . 1 . . 5 3 13 Burn 5 | . 1 . . . . . . . . 1 1 . . . . . . . . . . . . 2 Destroy 90 | . . . 1 1 16 4 30 . . 8 6 1 . 1 3 1 . . 1 . . 5 2 10 Blast 6 | . 2 1 . . . 1 1 . . . . . . . . . . . . . . . . 1 Sever 2 | . . . . . . . . . . . . 1 . . . . . . . . . . 1 . Impale 4 | . . . . . . . . . . . . . . . 2 2 . . . . . . . . Melee Attacks 275 | . . . . . 18 2 . 42 5 49 . 21 . 9 27 38 1 . 1 . 11 9 30 12 Impact 3 | . . . . . 1 2 . . . . . . . . . . . . . . . . . . Slashing 74 | . . . . . 10 . . 42 5 17 . . . . . . . . . . . . . . Piercing 191 | . . . . . . . . . . 32 . 21 . 9 27 38 1 . 1 . 11 9 30 12 Sneak Attacks 27 | . . . . . 6 . . . 4 . . . . 2 14 . . . . . . 1 . . Combat Hostiles . | . . . . . . . . . . . . . . . . . . . . . . . . . Follow-up Attacks . | . . . . . . . . . . . . . . . . . . . . . . . . . Damage Inflicted 52859 | 141 1167 201 2459 494 2411 837 2687 1996 2335 3584 1514 2403 997 1179 5183 3902 281 556 718 . 1529 3245 3465 9575 Guns 42180 | 141 385 . 2354 494 1484 210 1995 1939 2012 3469 1514 1648 997 970 4133 3654 281 556 718 . 1529 3189 2667 5841 Cannons 2744 | . 782 201 105 . . 126 692 . . . . . . . . . . . . . . . . 838 Explosions 3444 | . . . . . 213 406 . . . . . . . . . . . . . . . . . 2825 Melee 4142 | . . . . . 714 95 . 57 323 115 . 582 . 209 1050 248 . . . . . 56 622 71 Ramming . | . . . . . . . . . . . . . . . . . . . . . . . . . Kinetic 43017 | 77 978 201 2442 494 1484 336 2687 1939 2012 3371 1308 1648 997 970 4133 3654 281 556 718 . 1529 3189 2667 5346 Thermal 2280 | 64 189 . 17 . . . . . . 98 206 173 . . . . . . . . . . 176 1357 Explosive 3270 | . . . . . 213 406 . . . . . . . . . . . . . . . . . 2651 Electromagnetic 150 | . . . . . . . . . . . . . . . . . . . . . . . . 150 Impact 95 | . . . . . . 95 . . . . . . . . . . . . . . . . . . Slashing 1209 | . . . . . 714 . . 57 323 115 . . . . . . . . . . . . . . Piercing 2838 | . . . . . . . . . . . . 582 . 209 1050 248 . . . . . 56 622 71 Highest Corruption 16 | . . . 1 1 1 1 . . . 3 3 11 11 11 4 2 2 2 2 2 . 3 3 16 Average Corruption 2 | . . . 1 1 1 1 . . . 2 3 7 11 11 2 2 2 2 2 2 . 2 3 2 Corruption Purged 4 | . . . . . . . . . . . . . . . 4 . . . . . . . . . Corruption Blocked . | . . . . . . . . . . . . . . . . . . . . . . . . . Effects 290 | . . . 17 3 11 3 . . . 39 19 31 22 41 5 19 2 12 9 . . 14 35 8 Message Errors 82 | . . . 5 2 5 2 . . . 11 3 8 6 10 1 2 . 6 3 . . 4 12 2 Matter Fused 57 | . . . 4 . 1 . . . . 10 4 7 4 5 1 2 1 1 3 . . 5 9 . Heat Flow Errors 36 | . . . 3 1 2 . . . . 3 1 2 3 6 2 4 . 1 1 . . 2 3 2 Energy Discharges 31 | . . . 2 . . . . . . 2 3 3 3 7 . 4 . 2 . . . 2 2 1 Parts Rejected 3 | . . . 1 . . . . . . . 1 1 . . . . . . . . . . . . Parts Fused 8 | . . . . . . . . . . 2 1 1 . 1 . 1 1 . 1 . . . . . Data Loss (minor) 28 | . . . . . 3 . . . . 5 4 1 4 3 . 4 . . 1 . . 1 1 1 Data Loss (major) 11 | . . . 1 . . 1 . . . . . 2 1 . 1 . . 2 . . . . 2 1 Misfires 14 | . . . . . . . . . . 5 1 1 1 1 . 1 . . . . . . 4 . Alerts 5 | . . . . . . . . . . 1 . . . 2 . 1 . . . . . . 1 . Misdirections 1 | . . . . . . . . . . . . . . 1 . . . . . . . . . . Weapon Failures 14 | . . . 1 . . . . . . . 1 5 . 5 . . . . . . . . 1 1 Overload Shots . | . . . . . . . . . . . . . . . . . . . . . . . . . Overflow Damage 837 | . 5 . . . 62 22 . . 123 17 . 49 . 37 279 . . . . . . . 57 186 Projectiles 14 | . 5 . . . . . . . . . . . . . . . . . . . . . . 9 Explosions 217 | . . . . . 40 . . . . . . . . . . . . . . . . . . 177 Melee 606 | . . . . . 22 22 . . 123 17 . 49 . 37 279 . . . . . . . 57 . Knockbacks 29 | . 12 1 . . . 4 9 . . . . . . . . . . . . . . . . 3 Impact 1 | . . . . . . 1 . . . . . . . . . . . . . . . . . . Kinetic 28 | . 12 1 . . . 3 9 . . . . . . . . . . . . . . . . 3 Secondary . | . . . . . . . . . . . . . . . . . . . . . . . . . Self-Inflicted Damage 325 | . . . . . 27 . . . . . . . . . . . . . . . . . . 298 Shots 5 | . . . . . 1 . . . . . . . . . . . . . . . . . . 4 Rammed . | . . . . . . . . . . . . . . . . . . . . . . . . . Targets Rammed . | . . . . . . . . . . . . . . . . . . . . . . . . . Kicked . | . . . . . . . . . . . . . . . . . . . . . . . . . Crushed . | . . . . . . . . . . . . . . . . . . . . . . . . . Highest Temperature 640 | 18 159 120 265 140 232 220 222 321 387 419 243 640 230 427 626 176 . 174 118 . 60 245 203 460 Average Temperature 77 | 10 51 34 41 21 42 113 69 106 118 69 66 145 59 101 141 48 . 69 44 . 31 34 40 113 Received Heat Transfer 4360 | . 195 72 168 . . 96 273 252 108 447 81 66 99 54 268 253 6 32 39 . 155 408 264 1024 Effects 23 | . . . . . 1 . 2 2 4 . . 4 . . 6 . . . . . . . . 4 Shutdowns 2 | . . . . . . . . . 1 . . 1 . . . . . . . . . . . . Energy Bleed 8 | . . . . . . . . 1 2 . . 2 . . 1 . . . . . . . . 2 Interference 6 | . . . . . 1 . 2 . . . . . . . 1 . . . . . . . . 2 Short Circuit 2 | . . . . . . . . 1 . . . . . . 1 . . . . . . . . . Damage (minor) 4 | . . . . . . . . . 1 . . 1 . . 2 . . . . . . . . . Damage (core) 1 | . . . . . . . . . . . . . . . 1 . . . . . . . . . Siege Activations . | . . . . . . . . . . . . . . . . . . . . . . . . . Martial Activations . | . . . . . . . . . . . . . . . . . . . . . . . . . Shielding Activations . | . . . . . . . . . . . . . . . . . . . . . . . . . Robots Disrupted . | . . . . . . . . . . . . . . . . . . . . . . . . . Combat Hostiles . | . . . . . . . . . . . . . . . . . . . . . . . . . Robots Corrupted 1 | . . . . . . 1 . . . . . . . . . . . . . . . . . . Combat Hostiles . | . . . . . . . . . . . . . . . . . . . . . . . . . Parts Fried 4 | . . . . . . 4 . . . . . . . . . . . . . . . . . . Impact Corruptions 1 | . . . . . . 1 . . . . . . . . . . . . . . . . . . Robots Melted 1 | . . . . . . . . . . . . 1 . . . . . . . . . . . . Combat Hostiles . | . . . . . . . . . . . . . . . . . . . . . . . . . Parts Melted 10 | . 1 . 1 . . . . . . 4 . . . . . . . . 1 . . 1 . 2 Heat Transferred 4886 | 185 629 . 37 . . . . . . 361 572 592 . . . . . . . . . . 592 1918 Parts Sabotaged . | . . . . . . . . . . . . . . . . . . . . . . . . . Parts Stolen . | . . . . . . . . . . . . . . . . . . . . . . . . . Parts Stripped . | . . . . . . . . . . . . . . . . . . . . . . . . . Power Chain Reactions . | . . . . . . . . . . . . . . . . . . . . . . . . . Alert | -11 -10 -10 -9 -9 -9 -8 -8 -8 -8 -8 -8 -8 -8 -8 -7 -7 -7 -7 -7 -7 -6 -6 -6 -5 ------- Run | Yrd Mat Min Mat Min Exi Min Mat Gar Mat Gar Mat Gar Mat Sto Fac Gar Fac Low Low Zio Pro Fac Gar Fac Maximum Alert Level 5 | . . . 1 . . . 1 4 2 5 4 4 3 1 2 5 3 . . . . 1 4 5 Low Security (%) 37 | 100 100 100 44 100 . 100 73 2 19 . . . . 92 66 . . . . . . 85 . . Level 1 19 | . . . 55 . . . 26 14 54 2 . . . 7 30 7 . . . . . 14 14 . Level 2 9 | . . . . . . . . 22 25 11 . . 95 . 2 12 . . . . . . 10 7 Level 3 15 | . . . . . . . . 41 . 22 3 39 4 . . 17 100 . . . . . 44 71 Level 4 15 | . . . . . . . . 18 . 27 96 60 . . . 63 . . . . . . 30 16 Level 5 4 | . . . . . . . . . . 35 . . . . . . . . . . . . . 4 High Security . | . . . . . . . . . . . . . . . . . . . . . . . . . Max Security . | . . . . . . . . . . . . . . . . . . . . . . . . . Peak Influence 2524 | 10 171 171 350 170 . 116 267 1176 590 2524 1352 1408 717 227 443 1680 1093 . . . . 379 1342 1740 Initial 1230 | . . 57 30 115 . . 9 165 573 383 1230 834 686 227 53 306 882 . . . . . 259 704 Average 559 | 2 96 116 205 77 . 41 95 775 320 1389 1252 1159 566 75 169 1101 1021 . . . . 77 907 1019 Influence Increases 16526 | 25 605 152 1002 298 . 302 952 1031 853 2291 784 584 257 349 907 1384 276 198 208 . 260 814 1113 1881 Destroy 0b10 Robot/C 9300 | . 360 100 620 220 . 220 520 600 560 840 440 380 160 180 600 620 160 140 160 . 240 520 560 1100 Destroy 0b10 Robot/NC 800 | 25 30 15 95 10 . 10 90 5 80 5 80 10 5 45 100 20 10 . . . . 45 25 95 Destroy Leader 1606 | . 86 20 202 40 . 30 158 20 158 30 114 40 52 48 148 50 20 20 20 . 20 112 40 178 Allied During Kill 383 | . . 14 17 28 . . . . . 37 82 . . . . . 67 38 28 . . . 30 42 Successful Hack 302 | . 51 . 28 . . . 41 . 10 7 . . 5 10 16 16 . . . . . 36 28 54 Select Force Hacks 60 | . 60 . . . . . . . . . . . . . . . . . . . . . . . Disable Machine 540 | . . . 15 . . 15 90 . . 30 45 30 30 60 15 30 15 . . . . 60 15 90 Anti-Garrison Action 2600 | . . . . . . . . 300 . 1250 . 100 . . . 600 . . . . . . 350 . Destroy Structure 605 | . 3 3 10 . . 27 38 76 . 77 23 9 5 6 13 48 4 . . . . 11 50 202 Partial Spotted 60 | . . . . . . . . 30 . . . . . . . . . . . . . 15 . 15 Lose Combat Pursuer 270 | . 15 . 15 . . . 15 . 45 15 . 15 . . 15 . . . . . . 15 15 105 Influence Decreases 14786 | 25 457 221 784 595 . 277 723 109 1439 357 2024 460 1126 770 587 142 998 731 432 201 260 443 142 1483 Entered New Map 6398 | . . 91 49 182 . . 16 89 603 207 1294 450 722 312 65 132 798 355 82 201 . . 112 638 Time Decay 6629 | 25 457 110 695 373 . 267 468 . 686 . 350 . 254 308 512 . 180 356 350 . 260 413 . 565 Lost Part 440 | . . . 10 . . 10 30 20 . 70 . 10 . . 10 10 . . . . . 30 10 230 Lost Ally 360 | . . 20 30 40 . . . . . 80 80 . . . . . 20 20 . . . . 20 50 Purge Threat 959 | . . . . . . . 209 . 150 . 300 . 150 150 . . . . . . . . . . Squads Dispatched 69 | . 4 . 3 . . . 3 . 9 . 3 . . 1 9 . 2 . . . . 14 . 21 Investigation 24 | . 3 . 1 . . . 2 . 3 . 2 . . . 2 . . . . . . 7 . 4 Extermination 12 | . . . . . . . . . . . . . . . 4 . . . . . . 4 . 4 Reinforcement 18 | . 1 . 2 . . . 1 . 2 . 1 . . 1 2 . 1 . . . . 2 . 5 Assault 6 | . . . . . . . . . . . . . . . 1 . . . . . . . . 5 Garrison 9 | . . . . . . . . . 4 . . . . . . . 1 . . . . 1 . 3 Intercept . | . . . . . . . . . . . . . . . . . . . . . . . . . Searches Triggered . | . . . . . . . . . . . . . . . . . . . . . . . . . Construction Impeded 2 | . . . . . . . . . . . . . . . . . . . . . . . . 2 Haulers Reinforced 4 | . . . . . . . . . . . . . . . 1 . . . . . . 2 . 1 Active Scanning Responses . | . . . . . . . . . . . . . . . . . . . . . . . . . Cargo Convoy Interrupts . | . . . . . . . . . . . . . . . . . . . . . . . . . Stealth | -11 -10 -10 -9 -9 -9 -8 -8 -8 -8 -8 -8 -8 -8 -8 -7 -7 -7 -7 -7 -7 -6 -6 -6 -5 --------- Run | Yrd Mat Min Mat Min Exi Min Mat Gar Mat Gar Mat Gar Mat Sto Fac Gar Fac Low Low Zio Pro Fac Gar Fac Distress Signals 23 | . 1 . 3 . . . 2 . 2 . 4 . 1 3 2 . . . . . . 4 . 1 Communications Jammed . | . . . . . . . . . . . . . . . . . . . . . . . . . Distress Signals . | . . . . . . . . . . . . . . . . . . . . . . . . . Times Spotted 565 | . 25 6 46 11 11 8 38 28 37 40 25 20 10 13 35 31 5 6 6 . 14 37 32 81 Peak Tracking Total 11 | . 5 4 6 4 9 4 4 4 4 4 5 4 3 5 5 5 3 3 3 . 3 6 5 11 Tactical Retreats 15 | . 1 . 1 . 2 . 1 . 3 1 . 1 . . 1 . . . . . . 1 1 2 Traps | -11 -10 -10 -9 -9 -9 -8 -8 -8 -8 -8 -8 -8 -8 -8 -7 -7 -7 -7 -7 -7 -6 -6 -6 -5 ------- Run | Yrd Mat Min Mat Min Exi Min Mat Gar Mat Gar Mat Gar Mat Sto Fac Gar Fac Low Low Zio Pro Fac Gar Fac Traps Triggered 57 | . 1 . 1 . . . 1 9 . 12 . 4 1 . 7 6 1 . . . . 5 8 1 Indirectly . | . . . . . . . . . . . . . . . . . . . . . . . . . Trap Hack Attempts . | . . . . . . . . . . . . . . . . . . . . . . . . . Triggered . | . . . . . . . . . . . . . . . . . . . . . . . . . Disarmed . | . . . . . . . . . . . . . . . . . . . . . . . . . Reprogrammed . | . . . . . . . . . . . . . . . . . . . . . . . . . Reused . | . . . . . . . . . . . . . . . . . . . . . . . . . Traps Extracted . | . . . . . . . . . . . . . . . . . . . . . . . . . Installed . | . . . . . . . . . . . . . . . . . . . . . . . . . Triggered . | . . . . . . . . . . . . . . . . . . . . . . . . . Machines | -11 -10 -10 -9 -9 -9 -8 -8 -8 -8 -8 -8 -8 -8 -8 -7 -7 -7 -7 -7 -7 -6 -6 -6 -5 ---------- Run | Yrd Mat Min Mat Min Exi Min Mat Gar Mat Gar Mat Gar Mat Sto Fac Gar Fac Low Low Zio Pro Fac Gar Fac Machines Disabled 76 | . . . 1 . 17 1 6 4 . 9 3 5 2 4 1 6 1 . 1 . . 4 5 6 Max in Single Turn 2 | . . . . . 2 1 1 1 . 1 1 1 1 1 1 1 1 . 1 . . 1 1 1 Garrison Access 1 | . . . . . . . . . . . . . . . . . . . . . . . . 1 Garrison Relay 20 | . . . . . . . . 4 . 6 . 2 . . . 4 . . . . . . 4 . Machines Repaired . | . . . . . . . . . . . . . . . . . . . . . . . . . Machines Dismantled 1 | . . . . . . . . . . . . . . . . 1 . . . . . . . . Machines Sabotaged . | . . . . . . . . . . . . . . . . . . . . . . . . . Overloaded Fab Kills . | . . . . . . . . . . . . . . . . . . . . . . . . . Hacking | -11 -10 -10 -9 -9 -9 -8 -8 -8 -8 -8 -8 -8 -8 -8 -7 -7 -7 -7 -7 -7 -6 -6 -6 -5 --------- Run | Yrd Mat Min Mat Min Exi Min Mat Gar Mat Gar Mat Gar Mat Sto Fac Gar Fac Low Low Zio Pro Fac Gar Fac Machines Accessed 102 | . 10 . 12 . 2 1 12 1 12 4 3 . 4 5 5 5 2 . . . . 12 4 8 Terminals 67 | . 7 . 8 . . 1 7 1 9 4 2 . 4 3 2 5 1 . . . . 6 4 3 Fabricators 6 | . . . . . . . . . . . . . . . 2 . 1 . . . . 1 . 2 Repair Stations 11 | . 1 . 2 . . . 2 . 1 . . . . 2 . . . . . . . 2 . 1 Recycling Units 2 | . 2 . . . . . . . . . . . . . . . . . . . . . . . Scanalyzers 6 | . . . 2 . . . 2 . 1 . . . . . . . . . . . . 1 . . Garrison Access 8 | . . . . . . . 1 . 1 . 1 . . . 1 . . . . . . 2 . 2 Total Hacks 317 | . 28 . 31 . 2 2 48 2 33 9 11 . 8 13 16 14 6 . . . . 50 11 33 Successful 123 | . 14 . 15 . 2 . 26 . 11 1 3 . 2 8 9 1 2 . . . . 12 4 13 Failed 194 | . 14 . 16 . . 2 22 2 22 8 8 . 6 5 7 13 4 . . . . 38 7 20 Catastrophic 48 | . 4 . 3 . . . 2 . 6 2 2 . 2 2 1 2 1 . . . . 14 2 5 Database Lockouts . | . . . . . . . . . . . . . . . . . . . . . . . . . Manual 120 | . 21 . 19 . 1 2 20 . 11 . 6 . 7 . 2 2 . . . . . 16 2 11 Terminals 195 | . 22 . 22 . . 2 28 2 24 9 8 . 8 4 5 14 3 . . . . 22 11 11 Fabricators 29 | . . . . . . . . . . . . . . . 10 . 3 . . . . 3 . 13 Repair Stations 30 | . 3 . 3 . . . 5 . 3 . . . . 9 . . . . . . . 4 . 3 Recycling Units 3 | . 3 . . . . . . . . . . . . . . . . . . . . . . . Scanalyzers 34 | . . . 6 . . . 12 . 4 . . . . . . . . . . . . 12 . . Garrison Access 24 | . . . . . . . 3 . 2 . 3 . . . 1 . . . . . . 9 . 6 Terminal Hacks 46 | . 3 . 2 . 2 . 14 . 7 1 2 . 2 2 1 1 . . . . . 3 4 2 Record 1 | . . . . . 1 . . . . . . . . . . . . . . . . . . . Part Schematic 7 | . . . 1 . . . 5 . . . . . . . . . . . . . . 1 . . Robot Schematic 1 | . 1 . . . . . . . . . . . . . . . . . . . . . . . Robot Analysis 1 | . 1 . . . . . . . . . . . . . . . . . . . . . . . Prototype ID Bank 6 | . 1 . 1 . . . 2 . 1 . . . 1 . . . . . . . . . . . Open Door 3 | . . . . . . . . . . 1 . . . 1 . . . . . . . . 1 . Branch Access Points 1 | . . . . . . . . . . . . . . . 1 . . . . . . . . . Emergency Access Points 1 | . . . . . . . . . . . . . . . . . . . . . . . 1 . Alert Level 1 | . . . . . . . . . 1 . . . . . . . . . . . . . . . Unreport Threat 7 | . . . . . . . 2 . 1 . 2 . 1 1 . . . . . . . . . . Locate Traps 8 | . . . . . . . 1 . 3 . . . . . . . . . . . . 2 . 2 Recall Investigation 1 | . . . . . . . 1 . . . . . . . . . . . . . . . . . Hauler Manifests 2 | . . . . . . . 1 . 1 . . . . . . . . . . . . . . . Registered Components 1 | . . . . . . . 1 . . . . . . . . . . . . . . . . . Zone Layout 1 | . . . . . . . 1 . . . . . . . . . . . . . . . . . Garrison Registry 1 | . . . . . . . . . . . . . . . . . . . . . . . 1 . Patrol Navigation 1 | . . . . . . . . . . . . . . . . . . . . . . . 1 . Security Stations 1 | . . . . . . . . . . . . . . . . 1 . . . . . . . . Proto ID Catalog 1 | . . . . . 1 . . . . . . . . . . . . . . . . . . . Fabricator Hacks 14 | . . . . . . . . . . . . . . . 6 . 2 . . . . . . 6 Network Status 1 | . . . . . . . . . . . . . . . 1 . . . . . . . . . Load Schematic 8 | . . . . . . . . . . . . . . . 3 . 1 . . . . . . 4 Build 5 | . . . . . . . . . . . . . . . 2 . 1 . . . . . . 2 Repair Station Hacks 16 | . 2 . 2 . . . 3 . 1 . . . . 6 . . . . . . . . . 2 Scan Component 10 | . 1 . 1 . . . 2 . 1 . . . . 4 . . . . . . . . . 1 Repair 6 | . 1 . 1 . . . 1 . . . . . . 2 . . . . . . . . . 1 Recycling Unit Hacks . | . . . . . . . . . . . . . . . . . . . . . . . . . Scanalyzer 21 | . . . 5 . . . 8 . 1 . . . . . . . . . . . . 7 . . Insert Component 10 | . . . 2 . . . 3 . 1 . . . . . . . . . . . . 4 . . Analyze 11 | . . . 3 . . . 5 . . . . . . . . . . . . . . 3 . . Garrison Access Hacks 6 | . . . . . . . 1 . 1 . 1 . . . 1 . . . . . . 1 . 1 Unlock Access 5 | . . . . . . . 1 . 1 . 1 . . . 1 . . . . . . 1 . . Seal Access 1 | . . . . . . . . . . . . . . . . . . . . . . . . 1 Unauthorized Hacks 20 | . 9 . 6 . . . . . 1 . . . . . 1 . . . . . . 1 . 2 Terminals 13 | . 7 . 6 . . . . . . . . . . . . . . . . . . . . . Assimilate 1 | . 1 . . . . . . . . . . . . . . . . . . . . . . . Operators 1 | . 1 . . . . . . . . . . . . . . . . . . . . . . . Skim 11 | . 5 . 6 . . . . . . . . . . . . . . . . . . . . . Fabricators 3 | . . . . . . . . . . . . . . . 1 . . . . . . . . 2 Prioritize 1 | . . . . . . . . . . . . . . . . . . . . . . . . 1 Recompile 2 | . . . . . . . . . . . . . . . 1 . . . . . . . . 1 Repair Stations 1 | . . . . . . . . . . . . . . . . . . . . . . 1 . . Patch 1 | . . . . . . . . . . . . . . . . . . . . . . 1 . . Recycling Units 2 | . 2 . . . . . . . . . . . . . . . . . . . . . . . Tunnel 2 | . 2 . . . . . . . . . . . . . . . . . . . . . . . Scanalyzers . | . . . . . . . . . . . . . . . . . . . . . . . . . Garrison Access 1 | . . . . . . . . . 1 . . . . . . . . . . . . . . . Reprogram 1 | . . . . . . . . . 1 . . . . . . . . . . . . . . . Data Cores Recovered 3 | . 1 . . . . . . . 1 . . . . . . . 1 . . . . . . . Used 1 | . . . . . . . . . . . . . . . . . 1 . . . . . . . Hacking Detections 88 | . 8 . 12 . . 1 12 1 11 3 3 . 3 4 3 5 2 . . . . 12 2 6 Full Trace Events 24 | . 1 . 1 . . . 3 . 3 1 2 . . . . 4 . . . . . 5 1 3 Feedback Events 1 | . . . . . . . . . . . . . . . . . . . . . . 1 . . Corruption 1 | . . . . . . . . . . . . . . . . . . . . . . 1 . . Feedback Blocked . | . . . . . . . . . . . . . . . . . . . . . . . . . Robot Schematics Acquired 1 | . 1 . . . . . . . . . . . . . . . . . . . . . . . Robots Built 3 | . . . . . . . . . . . . . . . 1 . 1 . . . . . . 1 Authchips 3 | . . . . . . . . . . . . . . . 1 . 1 . . . . . . 1 Time 107 | . . . . . . . . . . . . . . . 40 . 27 . . . . . . 40 Total Robot Build Rating 3 | . . . . . . . . . . . . . . . 1 . 1 . . . . . . 1 Part Schematics Acquired 13 | . . . 3 . . . 7 . . . . . . . . . . . . . . 3 . . Parts Built 4 | . . . . . . . . . . . . . . . 2 . . . . . . . . 2 Authchips 2 | . . . . . . . . . . . . . . . 1 . . . . . . . . 1 Time 73 | . . . . . . . . . . . . . . . 31 . . . . . . . . 42 Total Part Build Rating 12 | . . . . . . . . . . . . . . . 4 . . . . . . . . 8 Parts Repaired 6 | . 1 . 1 . . . 1 . . . . . . 2 . . . . . . . . . 1 Time 309 | . 26 . 51 . . . 112 . . . . . . 92 . . . . . . . . . 28 Parts Recycled . | . . . . . . . . . . . . . . . . . . . . . . . . . Recycled Matter . | . . . . . . . . . . . . . . . . . . . . . . . . . Retrieved Matter . | . . . . . . . . . . . . . . . . . . . . . . . . . Retrieved Components . | . . . . . . . . . . . . . . . . . . . . . . . . . Parts Scanalyzed 8 | . . . 2 . . . 3 . 1 . . . . . . . . . . . . 2 . . Part Schematics Acquired 6 | . . . 2 . . . 2 . . . . . . . . . . . . . . 2 . . Parts Damaged 2 | . . . . . . . 1 . . . . . . . . . . . . . . 1 . . Bothacking | -11 -10 -10 -9 -9 -9 -8 -8 -8 -8 -8 -8 -8 -8 -8 -7 -7 -7 -7 -7 -7 -6 -6 -6 -5 ------------ Run | Yrd Mat Min Mat Min Exi Min Mat Gar Mat Gar Mat Gar Mat Sto Fac Gar Fac Low Low Zio Pro Fac Gar Fac Used RIF Installer . | . . . . . . . . . . . . . . . . . . . . . . . . . Robots Hacked 7 | . . . . . 6 . . . . . . . . . 1 . . . . . . . . . Non-combat 4 | . . . . . 3 . . . . . . . . . 1 . . . . . . . . . Combat 3 | . . . . . 3 . . . . . . . . . . . . . . . . . . . Robot Hacks Applied 7 | . . . . . 6 . . . . . . . . . 1 . . . . . . . . . parse_system 6 | . . . . . 6 . . . . . . . . . . . . . . . . . . . find_chute 1 | . . . . . . . . . . . . . . . 1 . . . . . . . . . Relay Couplers Released 76 | . . . . . . . . 13 . 25 . 7 . . . 14 . . . . . . 17 . Machine Destruction 76 | . . . . . . . . 13 . 25 . 7 . . . 14 . . . . . . 17 . Fabnet Peak Effective % . | . . . . . . . . . . . . . . . . . . . . . . . . . Robots Rewired 11 | . . . . . . . . . . 6 . . . . . 5 . . . . . . . . Allies Hacked . | . . . . . . . . . . . . . . . . . . . . . . . . . Hacks Repelled . | . . . . . . . . . . . . . . . . . . . . . . . . . Allies | -11 -10 -10 -9 -9 -9 -8 -8 -8 -8 -8 -8 -8 -8 -8 -7 -7 -7 -7 -7 -7 -6 -6 -6 -5 -------- Run | Yrd Mat Min Mat Min Exi Min Mat Gar Mat Gar Mat Gar Mat Sto Fac Gar Fac Low Low Zio Pro Fac Gar Fac Total Allies 25 | . 1 2 . 3 . . . . 2 6 . . . . 1 5 1 . . . . . 3 1 Largest Group 5 | . 1 3 2 3 1 . . . 2 5 4 . . . 1 5 5 5 3 3 3 1 2 2 Highest-Rated Group 157 | . 10 52 41 40 16 . . . 32 133 97 . . . 14 98 100 100 76 76 76 14 157 157 Highest-Rated Ally 95 | . 10 31 31 16 16 . . . 16 39 39 . . . 14 31 31 31 31 31 31 14 95 95 Initial Warlord ECA Mod 365 | . . . . . . . . . 6 6 16 16 22 22 21 21 29 29 29 29 28 28 28 35 Warlord Squad Rendezvous 1 | . . . . . . . . . . . . . . . . . . . . . . . . 1 Pyro 1 | . . . . . . . . . . . . . . . . . . . . . . . . 1 Total Orders 12 | . . 1 . . 1 . . . . . . . . 3 1 1 1 1 1 . 1 . . 1 STAY 2 | . . 1 . . 1 . . . . . . . . . . . . . . . . . . . AID 7 | . . . . . . . . . . . . . . . 1 1 1 1 1 . 1 . . 1 EXPLORE 3 | . . . . . . . . . . . . . . 3 . . . . . . . . . . Ally Attacks 300 | . . 12 21 9 3 . . . . 39 69 . . . . . 57 33 17 . 5 . 18 17 Total Damage 4931 | . . 209 338 129 48 . . . . 402 902 . . . . . 828 509 228 . 82 . 502 754 Kills 47 | . . 4 4 2 . . . . . 4 16 . . . . . 6 4 1 . . . 2 4 Allies Corrupted 2 | . . . . 1 . . . . . . . . . 1 . . . . . . . . . . Allies Melted . | . . . . . . . . . . . . . . . . . . . . . . . . . Intel | -11 -10 -10 -9 -9 -9 -8 -8 -8 -8 -8 -8 -8 -8 -8 -7 -7 -7 -7 -7 -7 -6 -6 -6 -5 ------- Run | Yrd Mat Min Mat Min Exi Min Mat Gar Mat Gar Mat Gar Mat Sto Fac Gar Fac Low Low Zio Pro Fac Gar Fac Active Infowar (turns) 1062 | 59 769 . . . . . . 36 . . . . . . 198 . . . . . . . . . Seismic 864 | 59 769 . . . . . . 36 . . . . . . . . . . . . . . . . T.N.C. 196 | . . . . . . . . . . . . . . . 196 . . . . . . . . . ECM 2 | . . . . . . . . . . . . . . . 2 . . . . . . . . . Robot Analysis Total 1 | . 1 . . . . . . . . . . . . . . . . . . . . . . . Derelict Logs Recovered 5 | . . . . 1 . . . . . . . . . . . . . 1 . 1 2 . . . Drone Launches 4 | . . . . . . . . . . . . . . 4 . . . . . . . . . . Drone Recoveries 1 | . . . . . . . . . . . . . . 1 . . . . . . . . . . Exploration | -11 -10 -10 -9 -9 -9 -8 -8 -8 -8 -8 -8 -8 -8 -8 -7 -7 -7 -7 -7 -7 -6 -6 -6 -5 ------------- Run | Yrd Mat Min Mat Min Exi Min Mat Gar Mat Gar Mat Gar Mat Sto Fac Gar Fac Low Low Zio Pro Fac Gar Fac Turns Passed 36401 | 112 1559 225 3090 955 2599 682 2341 1745 2759 3094 793 742 544 928 2018 1803 361 816 795 1924 1670 1430 1734 1682 Spaces Moved 21391 | 84 1191 153 1905 748 1862 512 1406 981 868 1523 426 329 301 358 1245 967 214 573 562 1358 1095 805 978 947 Core 102 | 3 . . . . . . . . . . . . . . . . . . . . . . . 99 Treads . | . . . . . . . . . . . . . . . . . . . . . . . . . Legs . | . . . . . . . . . . . . . . . . . . . . . . . . . Wheels 21289 | 81 1191 153 1905 748 1862 512 1406 981 868 1523 426 329 301 358 1245 967 214 573 562 1358 1095 805 978 848 Hover . | . . . . . . . . . . . . . . . . . . . . . . . . . Flight . | . . . . . . . . . . . . . . . . . . . . . . . . . Fastest Speed 50 | 50 80 100 100 120 105 120 120 120 125 155 150 145 145 145 116 120 135 135 135 135 135 135 125 50 Average Speed 130 | 78 101 113 117 120 118 120 133 139 136 158 151 151 145 145 126 134 135 135 135 135 135 138 136 118 Slowest Speed 255 | 80 115 115 120 120 120 120 135 180 160 160 165 160 210 145 135 135 135 135 135 135 135 140 140 255 Overloaded Moves . | . . . . . . . . . . . . . . . . . . . . . . . . . Propulsion Burnouts . | . . . . . . . . . . . . . . . . . . . . . . . . . Robots Hopped . | . . . . . . . . . . . . . . . . . . . . . . . . . Potential Cave-ins . | . . . . . . . . . . . . . . . . . . . . . . . . . Cave-ins Triggered . | . . . . . . . . . . . . . . . . . . . . . . . . . Exploration Rate (%) 64 | 5 98 43 98 94 91 96 92 74 73 92 49 46 23 65 32 89 6 67 72 83 94 28 91 22 Regions Visited 24 Branch Regions 9 Pre-discovered Areas 7 | . 2 1 . . 1 . . . . . . . . . . . . 2 . . 1 . . . Known Exits Taken 12 | . 1 1 . . . 1 1 . 1 . 1 . 1 1 1 . 1 . . . 1 1 . . Unknown Exits Taken 7 | 1 . . 1 1 1 . . . . . . . . . . . . 1 1 1 . . . . Scrap Searched 10 | . . . . 1 . 2 . . . . . . . . . . . 2 1 4 . . . . Spaces Dug 119 | . . 2 . . 11 9 . 21 . 16 . 4 . . 8 13 . . . . 10 2 4 19 Terrain Destroyed 365 | . . 3 . . 58 37 44 23 . 23 10 4 . . 8 17 3 . 3 . 15 6 6 105 Melee 83 | . . . . . . . . 21 . 16 . 4 . . 8 13 . . . . 10 1 4 6 Projectile 157 | . . 3 . . 14 11 43 2 . 6 10 . . . . 4 3 . 3 . 5 4 2 47 AOE 118 | . . . . . 42 24 . . . . . . . . . . . . . . . . . 52 Terrain Rammed . | . . . . . . . . . . . . . . . . . . . . . . . . . Walls Destroyed . | . . . . . . . . . . . . . . . . . . . . . . . . . Machines Disabled . | . . . . . . . . . . . . . . . . . . . . . . . . . Actions | -11 -10 -10 -9 -9 -9 -8 -8 -8 -8 -8 -8 -8 -8 -8 -7 -7 -7 -7 -7 -7 -6 -6 -6 -5 --------- Run | Yrd Mat Min Mat Min Exi Min Mat Gar Mat Gar Mat Gar Mat Sto Fac Gar Fac Low Low Zio Pro Fac Gar Fac Total 27493 | 107 1418 172 2595 775 2111 547 1716 1210 2351 1967 521 468 388 734 1571 1294 266 596 577 1448 1216 993 1186 1266 Wait 3246 | . 114 . 526 11 25 4 186 28 1403 42 28 13 45 294 127 28 30 8 1 77 80 61 19 96 Move 21368 | 83 1190 152 1904 747 1861 511 1405 980 867 1522 426 328 300 357 1244 966 213 572 561 1357 1094 805 976 947 Hop . | . . . . . . . . . . . . . . . . . . . . . . . . . Pick Up 295 | 8 19 . 33 2 52 4 18 15 9 20 9 4 6 10 14 14 2 1 . 3 1 16 12 23 Fast Attach 46 | 7 1 . 2 . 2 1 4 5 . 2 3 . 2 3 6 2 . 1 . . . 3 . 2 Attach 78 | . . . 3 . 11 1 6 2 . 11 . 2 1 1 5 2 2 . . 1 . 9 4 17 Detach . | . . . . . . . . . . . . . . . . . . . . . . . . . Swap 400 | . 11 3 18 . 18 6 13 25 16 33 7 21 5 19 46 36 11 3 2 6 5 20 28 48 Drop 290 | . 17 2 34 2 47 4 18 17 9 17 12 2 7 12 13 18 1 2 . 4 1 15 14 22 Fire 1046 | 9 66 15 75 13 75 14 66 40 42 73 36 55 22 29 89 75 6 9 12 . 24 47 55 99 Melee 275 | . . . . . 18 2 . 42 5 49 . 21 . 9 27 38 1 . 1 . 11 9 30 12 Ram . | . . . . . . . . . . . . . . . . . . . . . . . . . Kick . | . . . . . . . . . . . . . . . . . . . . . . . . . Crush . | . . . . . . . . . . . . . . . . . . . . . . . . . Escape Stasis 230 | . . . . . . . . 56 . 64 . 22 . . . 32 . . . . . 8 48 . Rewire 211 | . . . . . 2 . . . . 134 . . . . . 75 . . . . . . . . Trap . | . . . . . . . . . . . . . . . . . . . . . . . . . Miscellaneous 8 | . . . . . . . . . . . . . . . . 8 . . . . . . . . Route ------- -11/Scrapyard -10/Materials (discovered 6 exits: *Mat x3 / *Min x2 / [*Sub]) -10/Mines (discovered 2 exits: *Mat x2) -9/Materials (discovered 4 exits: *Mat x3 / [*Min]) -9/Mines (discovered 3 exits: *Mat x2 / *Exi) -9/Exiles -8/Mines (discovered 2 exits: *Mat x2) -8/Materials (discovered 5 exits: *Fac x3 / *Sto / Gar) -8/Garrison (discovered 3 exits: *Mat x3) -8/Materials (discovered 5 exits: *Fac x2 / *Sto x2 / Gar) -8/Garrison (discovered 4 exits: *Fac x3 / *Mat) -8/Materials (discovered 3 exits: *Fac x2 / Gar) -8/Garrison -8/Materials -8/Storage (discovered 2 exits: *Fac / Rec) -7/Factory (discovered 4 exits: *Fac / Low x2 / Gar) -7/Garrison (discovered 4 exits: *Fac x3 / *Fac) -7/Factory -7/Lower Caves -7/Lower Caves -7/Zion -6/Proximity Caves -6/Factory -6/Garrison (discovered 3 exits: *Fac x3) -5/Factory (discovered 1 exit: *Fac) History --------- Turn | Location | Event 28 | -11/Scrapyard | Discovered new exit (range 16) 113 | -11/Scrapyard | Entered Materials 295 | -10/Materials | Discovered new exit (range 4) 312 | -10/Materials | Build established: Mutant 395 | -10/Materials | Discovered new exit (range 11) 589 | -10/Materials | Discovered new exit (range 6) 602 | -10/Materials | Discovered new exit (range 6) 845 | -10/Materials | Repaired Lgt. Cannon 949 | -10/Materials | Core integrity fell below 50% 1187 | -10/Materials | Learned Storage trap positions 1239 | -10/Materials | Learned 2 Storage zone layouts 1279 | -10/Materials | Learned location of 1 exit from Storage 1310 | -10/Materials | Learned location of 1 exit from Recycling 1330 | -10/Materials | Learned 2 Mines zone layouts 1359 | -10/Materials | Identified exit to Mines 1359 | -10/Materials | Identified exit to Materials 1370 | -10/Materials | Discovered exit to Materials (range 3) 1375 | -10/Materials | Discovered new exit (range 9) 1399 | -10/Materials | Learned 2 Mines zone layouts 1672 | -10/Materials | Entered Mines 1672 | -10/Mines | Accompanied by 1 ally 1780 | -10/Mines | Discovered exit to Materials (range 7) 1859 | -10/Mines | Assembled infested the area 1883 | -10/Mines | Discovered exit to Materials (range 5) 1897 | -10/Mines | Entered Materials 1897 | -9/Materials | Accompanied by 2 allies 1897 | -9/Materials | Evolved 2 slots: Weapon x2 1902 | -9/Materials | Led the pair of lost Derelicts to an unsafe place 2204 | -9/Materials | Build established: Tank 2213 | -9/Materials | Discovered new exit (range 15) 2898 | -9/Materials | Discovered new exit (range 16) 3129 | -9/Materials | Build established: Gunner 3490 | -9/Materials | Discovered new exit (range 8) 3732 | -9/Materials | Loaded intel: 10 trap records 3790 | -9/Materials | Identified exit to Materials 3918 | -9/Materials | Learned Storage emergency access door positions 3978 | -9/Materials | Learned location of 3 exits from Materials 4023 | -9/Materials | Loaded intel: 11 terminal locations 4942 | -9/Materials | Repaired Imp. Assault Rifle 4987 | -9/Materials | Entered Mines 5005 | -9/Mines | Discovered exit to Materials (range 16) 5139 | -9/Mines | Assisted by bots powering up and referring to "LRC-V3" 5178 | -9/Mines | Received a Rocket Launcher from a helpful Derelict 5314 | -9/Mines | Learned location of 1 exit from Proximity Caves 5400 | -9/Mines | Discovered exit to Materials (range 5) 5774 | -9/Mines | A weapon hastily lodged in a ceiling crevice suddenly fell to the ground 5800 | -9/Mines | Found a Scrap Suit stashed away for nefarious purposes 5938 | -9/Mines | Deemed a non-threat by the Exiles lab entrance 5938 | -9/Mines | Discovered new exit (range 5) 5942 | -9/Mines | Entered Exiles 5942 | -9/Exiles | Accompanied by 1 ally 5972 | -9/Exiles | Met 8R-AWN 5990 | -9/Exiles | Met EX-HEX 6047 | -9/Exiles | Met EX-DEC 6107 | -9/Exiles | Discovered new exit (range 10) 6161 | -9/Exiles | Learned location of Zion (-7) 6256 | -9/Exiles | Build established: Mutant 6371 | -9/Exiles | Visited The Gauntlet 6667 | -9/Exiles | Met EX-BIN 6847 | -9/Exiles | Aligned with FarCom system 6848 | -9/Exiles | Given EX-Vault access code 6877 | -9/Exiles | Opened EX-Vault 6885 | -9/Exiles | Found Deploy-a-Sentry 6887 | -9/Exiles | Found Deploy-a-Sentry 6889 | -9/Exiles | Found Deploy-a-Sentry 6892 | -9/Exiles | Found AWS/Thermal 6895 | -9/Exiles | Found YOLO Cannon 6919 | -9/Exiles | Warned to stay clear of 0b10 Research branches 7512 | -9/Exiles | Attacked by the Exiles 7687 | -9/Exiles | Destroyed 8R-AWN 7688 | -9/Exiles | Lost 7 parts (1n6w) 7696 | -9/Exiles | Found 8R-AWN's Boregun 7699 | -9/Exiles | Found 8R-AWN's Boregun 7703 | -9/Exiles | Found Exp. Targeting Computer 7708 | -9/Exiles | Found AS-neutralizer No. 17b 8062 | -9/Exiles | Destroyed EX-BIN 8096 | -9/Exiles | Destroyed EX-DEC 8110 | -9/Exiles | Build established: Scavenger-Gunner 8119 | -9/Exiles | Destroyed EX-HEX 8126 | -9/Exiles | Found System Purifier 8133 | -9/Exiles | Found Exp. Core Analyzer 8541 | -9/Exiles | Entered Mines 8737 | -8/Mines | Core integrity fell below 50% 8796 | -8/Mines | Build established: Tank 8827 | -8/Mines | Discovered exit to Materials (range 9) 9029 | -8/Mines | Discovered exit to Materials (range 10) 9223 | -8/Mines | Entered Materials 9223 | -8/Materials | Evolved 2 slots: Utility x1, Weapon x1 9224 | -8/Materials | Identified exit to Storage 9225 | -8/Materials | Identified exit to Factory 9930 | -8/Materials | Build established: Gunner 10341 | -8/Materials | Identified exit to Garrison 10688 | -8/Materials | Repaired Broken Exp. Heat Sink 11564 | -8/Materials | Entered Garrison 11596 | -8/Garrison | Triggered checkpoint 11648 | -8/Garrison | Garrison Relay disabled 11836 | -8/Garrison | Triggered checkpoint 11906 | -8/Garrison | Triggered checkpoint 11994 | -8/Garrison | Discovered new exit (range 15) 12098 | -8/Garrison | Triggered checkpoint 12123 | -8/Garrison | Garrison Relay disabled 12172 | -8/Garrison | Triggered checkpoint 12254 | -8/Garrison | Triggered checkpoint 12287 | -8/Garrison | Garrison Relay disabled 12309 | -8/Garrison | Discovered new exit (range 8) 12557 | -8/Garrison | Triggered checkpoint 12892 | -8/Garrison | Discovered new exit (range 13) 12944 | -8/Garrison | Triggered checkpoint 12979 | -8/Garrison | Garrison Relay disabled 13309 | -8/Garrison | Entered Materials 14044 | -8/Materials | Garrison activated, responded to threat 14213 | -8/Materials | Discovered exit to Storage (range 13) 14474 | -8/Materials | Garrison activated, responded to threat 14506 | -8/Materials | Discovered exit to Storage (range 7) 14546 | -8/Materials | Discovered exit to Factory (range 5) 15820 | -8/Materials | Discovered exit to Factory (range 10) 15959 | -8/Materials | Garrison activated, responded to threat 16011 | -8/Materials | Destroyed 7 combat bots 16025 | -8/Materials | Identified exit to Garrison 16068 | -8/Materials | Entered Garrison 16068 | -8/Garrison | Accompanied by 2 allies 16176 | -8/Garrison | Triggered checkpoint 16269 | -8/Garrison | Garrison Relay disabled 16431 | -8/Garrison | Triggered checkpoint 16433 | -8/Garrison | Spotted B-75 Beast 16447 | -8/Garrison | Destroyed B-75 Beast 16527 | -8/Garrison | Discovered new exit (range 3) 16738 | -8/Garrison | Triggered checkpoint 16780 | -8/Garrison | Triggered checkpoint 16851 | -8/Garrison | Core integrity fell below 50% 16933 | -8/Garrison | Build established: Scavenger-Gunner 17025 | -8/Garrison | Discovered exit to Factory (range 13) 17140 | -8/Garrison | Triggered checkpoint 17203 | -8/Garrison | Garrison Relay disabled 17326 | -8/Garrison | Triggered checkpoint 17654 | -8/Garrison | Discovered exit to Factory (range 10) 17688 | -8/Garrison | Triggered checkpoint 17720 | -8/Garrison | Triggered checkpoint 17747 | -8/Garrison | Garrison Relay disabled 18250 | -8/Garrison | Triggered checkpoint 18296 | -8/Garrison | Triggered checkpoint 18360 | -8/Garrison | Garrison Relay disabled 18424 | -8/Garrison | Discovered exit to Factory (range 15) 18572 | -8/Garrison | Triggered checkpoint 18595 | -8/Garrison | Garrison Relay disabled 18629 | -8/Garrison | Garrison Relay disabled 19162 | -8/Garrison | Entered Materials 19162 | -8/Materials | Accompanied by 4 allies 19464 | -8/Materials | Discovered exit to Factory (range 5) 19933 | -8/Materials | Discovered exit to Factory (range 4) 19953 | -8/Materials | Identified exit to Garrison 19955 | -8/Materials | Entered Garrison 20109 | -8/Garrison | Triggered checkpoint 20251 | -8/Garrison | Garrison Relay disabled 20341 | -8/Garrison | Triggered checkpoint 20421 | -8/Garrison | Triggered checkpoint 20465 | -8/Garrison | Core integrity fell below 20% 20486 | -8/Garrison | System corruption reached 10% 20529 | -8/Garrison | Garrison Relay disabled 20602 | -8/Garrison | Discovered new exit (range 9) 20697 | -8/Garrison | Entered Materials 21165 | -8/Materials | Discovered exit to Storage (range 14) 21241 | -8/Materials | Entered Storage 21242 | -8/Storage | Identified exit to Recycling 21244 | -8/Storage | Loaded intel: 7 trap records 21310 | -8/Storage | Repaired Arm. Wheel? 22053 | -8/Storage | Discovered exit to Factory (range 16) 22140 | -8/Storage | Build established: Gunner 22149 | -8/Storage | Repaired Enh. Autogun 22169 | -8/Storage | Entered Factory 22169 | -7/Factory | Evolved 2 slots: Propulsion x1, Utility x1 22523 | -7/Factory | Build established: Tank 23061 | -7/Factory | Destroyed 8 combat bots 23102 | -7/Factory | Build established: Gunner 23602 | -7/Factory | Identified exit to Lower Caves 23743 | -7/Factory | Fabricated M-13 Machinist (x1) 23811 | -7/Factory | Fabricated Arm. Wheel (x2) 24121 | -7/Factory | Discovered new exit (range 5) 24169 | -7/Factory | First assault squad dispatched 24180 | -7/Factory | Identified exit to Garrison 24187 | -7/Factory | Entered Garrison 24187 | -7/Garrison | Accompanied by 1 ally 24274 | -7/Garrison | Triggered checkpoint 24307 | -7/Garrison | Learned Factory security intel 24319 | -7/Garrison | Garrison Relay disabled 24411 | -7/Garrison | Triggered checkpoint 24448 | -7/Garrison | Destroyed 8 combat bots 24540 | -7/Garrison | Core integrity fell below 50% 24592 | -7/Garrison | Destroyed 10 combat bots 24626 | -7/Garrison | Garrison Relay disabled 24697 | -7/Garrison | Discovered new exit (range 15) 24897 | -7/Garrison | Triggered checkpoint 24973 | -7/Garrison | Triggered checkpoint 25077 | -7/Garrison | Garrison Relay disabled 25147 | -7/Garrison | Discovered new exit (range 10) 25501 | -7/Garrison | Discovered new exit (range 13) 25515 | -7/Garrison | Triggered checkpoint 25532 | -7/Garrison | Garrison Relay disabled 25650 | -7/Garrison | Build established: Scavenger-Tank 25669 | -7/Garrison | Triggered checkpoint 25732 | -7/Garrison | Discovered new exit (range 5) 25990 | -7/Garrison | Entered Factory 25990 | -7/Factory | Accompanied by 5 allies 25991 | -7/Factory | Garrison activated, responded to threat 26157 | -7/Factory | Discovered exit to Lower Caves (range 15) 26198 | -7/Factory | Fabricated M-13 Machinist (x1) 26351 | -7/Factory | Entered Lower Caves 26351 | -7/Lower Caves | Accompanied by 5 allies 26361 | -7/Lower Caves | Met a Warlord Commander 26362 | -7/Lower Caves | Learned location of Warlord (-5) 26363 | -7/Lower Caves | Warlord Commander delivered Encrypted Comm Array 26374 | -7/Lower Caves | Found Encrypted Comm Array 26607 | -7/Lower Caves | Attracted the attention of an 0b10 checkpoint 26767 | -7/Lower Caves | Learned location of Extension (-5) 26819 | -7/Lower Caves | Discovered new exit (range 14) 27167 | -7/Lower Caves | Entered another Lower Caves area 27167 | -7/Lower Caves | Accompanied by 3 allies 27376 | -7/Lower Caves | Attracted the attention of an 0b10 checkpoint 27671 | -7/Lower Caves | Acquired the password to a Derelict Tinkerer's latest research 27939 | -7/Lower Caves | Discovered new exit (range 8) 27962 | -7/Lower Caves | Entered Zion 27962 | -7/Zion | Accompanied by 3 allies 28016 | -7/Zion | System corruption cleaned by Quarantine Array 28197 | -7/Zion | Discovered new exit (range 15) 28809 | -7/Zion | Found Prototype Device 28810 | -7/Zion | Identified Mobile Refinery Mk. CCLXVII 29056 | -7/Zion | Learned Factory emergency access door positions 29886 | -7/Zion | Entered Proximity Caves 29886 | -6/Proximity Caves | Accompanied by 3 allies 29887 | -6/Proximity Caves | Identified exit to Factory 30279 | -6/Proximity Caves | Spotted B-75 Beast 30434 | -6/Proximity Caves | Attracted the attention of an 0b10 checkpoint 30574 | -6/Proximity Caves | Learned Factory emergency access door positions 30680 | -6/Proximity Caves | Core integrity fell below 20% 31556 | -6/Proximity Caves | Entered Factory 31556 | -6/Factory | Accompanied by 1 ally 31556 | -6/Factory | Evolved 2 slots: Utility x1, Weapon x1 31864 | -6/Factory | Build established: Scavenger-Executioner 32275 | -6/Factory | Allied Derelicts emerged from ambush trap array 32916 | -6/Factory | Garrison activated, responded to threat 32958 | -6/Factory | Destroyed 7 combat bots 32986 | -6/Factory | Identified exit to Garrison 32986 | -6/Factory | Entered Garrison 33020 | -6/Garrison | Triggered checkpoint 33048 | -6/Garrison | Rescued a captive Derelict 33074 | -6/Garrison | Garrison Relay disabled 33316 | -6/Garrison | Triggered checkpoint 33318 | -6/Garrison | Triggered checkpoint 33382 | -6/Garrison | Triggered checkpoint 33405 | -6/Garrison | Triggered checkpoint 33690 | -6/Garrison | Discovered new exit (range 8) 33859 | -6/Garrison | Discovered new exit (range 11) 33874 | -6/Garrison | Garrison Relay disabled 33902 | -6/Garrison | Found embedded Infiltrators 34221 | -6/Garrison | Discovered new exit (range 12) 34227 | -6/Garrison | Discovered new exit (range 39) 34227 | -6/Garrison | Discovered new exit (range 16) 34227 | -6/Garrison | Discovered new exit (range 57) 34276 | -6/Garrison | Garrison Relay disabled 34491 | -6/Garrison | Garrison Relay disabled 34589 | -6/Garrison | Attempted to access garrison exit controls, blocked by remote lockdown 34720 | -6/Garrison | Entered Factory 34720 | -5/Factory | Accompanied by 2 allies 34720 | -5/Factory | Evolved 2 slots: Propulsion x1, Utility x1 34841 | -5/Factory | Repaired Rnf. Fission Core 35020 | -5/Factory | First assault squad dispatched 35125 | -5/Factory | Fabricated M-13 Machinist (x1) 35443 | -5/Factory | Fabricated Arm. Huge Wheel? 35894 | -5/Factory | Discovered new exit (range 10) 35922 | -5/Factory | Identified exit to Factory 35999 | -5/Factory | Joined by Warlord Pyro squad 36024 | -5/Factory | Garrison activated, responded to threat 36073 | -5/Factory | Lost 3 allies 36097 | -5/Factory | Destroyed 8 combat bots 36106 | -5/Factory | Lost 3 parts (1p2w) 36184 | -5/Factory | Spotted B-75 Beast 36325 | -5/Factory | System corruption reached 10% 36336 | -5/Factory | Core integrity fell below 50% 36336 | -5/Factory | Released all parts (3) 36342 | -5/Factory | Core integrity fell below 20% 36349 | -5/Factory | Destroyed 11 combat bots 36366 | -5/Factory | Lost 17 parts (1p3n5u8w) 36402 | -5/Factory | Destroyed by Y-64 Sentinel with KE Penetrator Last Messages --------------- 36341_ Penetrated by Slug. 36342_ U-05 Engineer lays Concrete. 36343_ R-10 Processor collects Plasma Cutter. 36344_ Penetrated by Slug. 36345_ U-05 Engineer lays Concrete. 36345_ Penetrated by Slug. 36345_ Slug penetrates Wall. 36346_ U-05 Engineer lays Concrete. 36347_ The unstable cave ceiling collapses. 36347_ U-05 Engineer builds a Door. 36348_ Penetrated by Slug. 36351_ System corrupted: Substantial component data lost. 36376_ ALERT: Potential suspicious activity detected, Programmers report to Factory Zone 8F. 36387_ Acquired Neutrino Core. 36390_ Connecting with Garrison Access... >>Seal Access door sealed. 36392_ Arm. Huge Wheel destroyed. 36397_ Penetrated by Slug. Map ----- +----------------------------------------------------+ | #+####???????????????????????????????????????????? | | #???????????????????????????????????????????? | | #???????????????????????????????????????????? | | #???????????????????????????????????????????? | | #???????????????????????????????????????????? | | #???????????????????????????????????????????? | | #???????????????????????????????????????????? | | #???????????????????????????????????????????? | | #???????????????????????????????????????????? | | #???????????????????????????????????????????? | | #???????????????????????????????????????????? | | #???????????????????????????????????????????? | | #???????????????????????????????????????????? | | #???????????????????????????????????????????? | | ###+######+#####+#####??????????????????????? | | #??????????????????????? | | #??????????????????????? | | #??????????????????????? | | #??????????????????????? | | #??????????????????????? | | ########+######+######### #??????????????????????? | | ????# # #?# #??????????????????????? | | ????# """ ""# """ ### ###????????????????????? | | ????# """ """# """ # #????????????????????? | | ????# """ R"# """ # #????????????????????? | | ????# """# Y ; !@Y +????????????????????? | | ????+ ""# """ # #????????????????????? | | ????# // # G" # #????????????????????? | | ????# // / """ ###+###????????????????????? | | ????+ / = # #??????????????????????????? | | ????## ################??????????????????????????? | | ??????#??????????????????????????????????????????? | | ?????????????????????????????????????????????????? | | ?????????????????????????????????????????????????? | | | | | | | | | | | | | | | | | | | | | | | | | | | | | | | | | +----------------------------------------------------+ Best States ------------- Heat Dissipation 97 Energy Generation 25 Energy Capacity 340 Matter Stores 300 Matter Capacity 300 Sight Range 16 Terrain Scan Density 10 ECM Strength 2 Base Temperature (-) 100 Armor Coverage 225 Weapon Shielding 90 Weapon Cycling 25 Evasion (%) 50 Targeting Accuracy 12 Core Analysis 8 Recoil Reduction 6 Matter Filtering 30 Salvage Targeting 1 Offensive Hacking 10 Defensive Hacking 14 Authchip Count 4 Item Schematics ----------------- Wheel | -9/Materials | Scanalyzed Arm. Wheel | -9/Materials | Hacked Recoil Stabilizer | -9/Materials | Scanalyzed Rnf. Fission Core | -8/Materials | Scanalyzed Exp. Heat Sink | -8/Materials | Scanalyzed Lgt. Ion Engine | -8/Materials | Hacked Heat Sink | -8/Materials | Hacked Lgt. Assault Rifle | -8/Materials | Hacked Propulsion Shielding | -8/Materials | Hacked Targeting Computer | -8/Materials | Hacked Arm. Huge Wheel | -6/Factory | Hacked Cryofiber Web | -6/Factory | Scanalyzed Exp. Targeting Computer | -6/Factory | Scanalyzed Robot Schematics ------------------ M-13 Machinist | -10/Materials | Hacked Fabricated ------------ M-13 Machinist | x1 | -7/Factory | Authchip Arm. Wheel | x2 | -7/Factory | Authchip M-13 Machinist | x1 | -7/Factory | Authchip M-13 Machinist | x1 | -5/Factory | Authchip Arm. Huge Wheel | x2 | -5/Factory | Authchip Repaired ---------- Lgt. Cannon | 16% | -10/Materials Imp. Assault Rifle | 32% | -9/Materials Exp. Heat Sink | 82% | -8/Materials | Broken Arm. Wheel | 15% | -8/Storage Enh. Autogun | 8% | -8/Storage Rnf. Fission Core | 11% | -5/Factory Alien Tech Used ----------------- None Achievements -------------- None Challenges ------------ None Game ------ Seed BiomechanicalKineticDiverter Manual? 0 Play Time 04:19:42 Cumulative 1069.9 hours Start 2025.07.15 @ 21:55:18 End 2025.07.17 @ 00:36:49 Sessions 5 Manual Loads 0 Difficulty Rogue Special Mode None Game No. 531 Rogue 531 Adventurer 0 Explorer 0 Win Type - Total 23 Types 10/4/3/0/1/1/2/2/0/0 Lore% 89 Gallery% 89 Achievement% 83 Wizard Run 0 Options --------- Layout 0 ASCII 0 Keyboard 0 Movement Numpad Keybinds 0 Fullscreen 2 Font 24/Smallcaps Map View 76x50 Zoom Use 0% Tactical HUD 1 Map Filters NONE Filters SHIFT_HUE(315) Steam 1 RUN: ea1ebffc-c157-4a0d-99cc-8aae486b3f7a